Cogmind - Beta 16 @@@ ROGUE MODE // 2025.12.13 @ 18:31:46 Player: The Overplayer Result: Destroyed by L-41 Fighter with Axe Performance ------------- Evolutions (0) 0 Regions Visited (3) 600 Robots Destroyed (20) 100 Value Destroyed (424) 424 Prototype IDs (0) 0 Alien Tech Used (0) 0 Bonus (0) 0 TOTAL SCORE: 1124 Bonus ------- None Cogmind --------- Core Integrity 0/250 Matter 270/300 Energy 100/100 System Corruption 0% Temperature Cool (0) Movement Walking (190) Ox1 Location -7/Recycling Parts ------- > --- POWER (1) -------- (None) > --- PROPULSION (2) --- Aluminum Leg > --- UTILITY (2) ------ Small Storage Unit Seismic Detector > --- WEAPON (2) ------- Small Laser Flak Gun > --- INVENTORY (8) ---- Aluminum Leg Aluminum Leg Improved Carbon-fiber Leg Improved Heat Sink Sensor Array Utility Shielding Mining Laser Mace Peak State ------------ > --- POWER ------------ Ion Engine > --- PROPULSION ------- Aluminum Leg Aluminum Leg > --- UTILITY ---------- Small Storage Unit Seismic Detector > --- WEAPON ----------- Small Laser Flak Gun > --- INVENTORY -------- Aluminum Leg Aluminum Leg Aluminum Leg Improved Heat Sink Sensor Array Utility Shielding Small Laser Mining Laser [Rating: 11] Favorites ----------- Power Ion Engine Engine Ion Engine Propulsion Aluminum Leg Leg Aluminum Leg Utility Small Storage Unit Device Seismic Detector Storage Small Storage Unit Weapon Small Laser Energy Gun Small Laser Ballistic Gun Flak Gun Build | -11 -10 -10 -7 ------- Run | Yrd Mat Sub Rec Slots Evolved . | . . . . Power . | . . . . Propulsion . | . . . . Utility . | . . . . Weapon . | . . . . Parts Attached 20 | 7 10 . 3 Power 3 | 1 2 . . Engine 3 | 1 2 . . Core . | . . . . Reactor . | . . . . Propulsion 9 | 2 5 . 2 Treads . | . . . . Leg 9 | 2 5 . 2 Wheel . | . . . . Hover . | . . . . Flight . | . . . . Utility 3 | 2 1 . . Device 2 | 1 1 . . Storage 1 | 1 . . . Processor . | . . . . Hackware . | . . . . Protection . | . . . . Artifact . | . . . . Weapon 5 | 2 2 . 1 Energy Gun 4 | 2 2 . . Energy Cannon . | . . . . Ballistic Gun 1 | . . . 1 Ballistic Cannon . | . . . . Launcher . | . . . . Special Weapon . | . . . . Impact Weapon . | . . . . Slashing Weapon . | . . . . Piercing Weapon . | . . . . Special Melee Weapon . | . . . . Unidentified Prototypes . | . . . . Parts Lost 3 | . 2 . 1 Power . | . . . . Propulsion 1 | . . . 1 Utility 1 | . 1 . . Weapon 1 | . 1 . . Highest Loss Streak 2 | . 2 . 1 To Critical Strikes . | . . . . Average Backups 6 | . 6 8 8 Power . | . . . . Propulsion 2 | . 2 3 3 Utility 2 | . 2 3 3 Weapon 1 | . 1 2 2 Tool/Special . | . . . . Unused Backups 6 | . . . 6 Power . | . . . . Propulsion 1 | . . . 1 Utility 3 | . . . 3 Weapon 2 | . . . 2 Tool/Special . | . . . . Average Slot Usage (%) 99 | . 98 100 100 Engine 14 | . 14 14 14 Leg 28 | . 28 28 28 Device 13 | . 13 14 14 Storage 14 | . 14 14 14 Energy Gun 25 | . 27 28 15 Ballistic Gun 2 | . . . 12 Peak Build Rating 11 | 9 9 8 11 Average Rating 8 | 5 8 8 10 On Entrance 6 | . 9 8 8 Avg Prop Armor Cover (%) . | . . . . Naked Turns . | . . . . Heaviest Build 16 | 13 13 13 16 Greatest Support 20 | 20 20 20 20 Greatest Overweight (x) 1 | 1 . . . Average Overweight (x) . | . . . . Largest Inventory Capacity 8 | 8 8 8 8 Average Capacity 7 | 7 8 8 8 Most Carried 8 | 2 8 8 8 Average Carried 6 | . 6 8 7 Final Capacity 8 | 8 8 8 8 Final Carried 8 | 2 8 8 8 Class Distribution -------------------- 61% | Scavenger-Mutant 38% | Mutant Dominant Class ---------------- Mutant | -10/Materials Scavenger-Mutant | -10/Subcaves Scavenger-Mutant | -7/Recycling Resources | -11 -10 -10 -7 ----------- Run | Yrd Mat Sub Rec Matter Collected 380 | 181 179 20 . Remotely . | . . . . Salvage Created 646 | 85 509 52 . Parts 52 | 8 36 8 . Haulers Intercepted . | . . . . Recyclers Shooed 2 | . 2 . . Parts Field Recycled . | . . . . Retrieved Matter . | . . . . Parts Self-Destructed 11 | . . 11 . Prevented . | . . . . Parts Restored . | . . . . Kills | -11 -10 -10 -7 ------- Run | Yrd Mat Sub Rec Combat Hostiles Destroyed 16 | . 12 4 . Guns 16 | . 12 4 . Classes Destroyed 5 | 2 3 . . Tunneler 1 | 1 . . . Recycler 2 | 1 1 . . Watcher 1 | . 1 . . Swarmer 7 | . 3 4 . Grunt 9 | . 9 . . Best Kill Streak 4 | 2 3 4 . Combat Bots Only 4 | . 3 4 . Max Kills in Single Turn 2 | 1 2 1 . Gunslinging 1 | . 1 . . Exploded . | . . . . Melee . | . . . . Uniques/NPCs Destroyed . | . . . . Combat | -11 -10 -10 -7 -------- Run | Yrd Mat Sub Rec Hostile Shots Fired 175 | . 79 58 38 Missed 77 | . 24 30 23 Hits 98 | . 55 28 15 Melee 4 | . . . 4 Projectile 94 | . 55 28 11 Critical Strikes 2 | . . . 2 Part Disruptions 1 | . . . 1 Damage Taken 1064 | . 592 200 272 Core 272 | . 117 69 86 Absorbed by Shields . | . . . . Core Remaining (%) 100 | 100 . . . Volleys Fired 65 | 5 54 5 1 Largest 2 | 2 2 2 2 Hottest 80 | 80 80 80 68 Shots Fired 119 | 10 97 10 2 Gun 119 | 10 97 10 2 Cannon . | . . . . Launcher . | . . . . Special . | . . . . Kinetic 1 | . . . 1 Thermal 118 | 10 97 10 1 Explosive . | . . . . Electromagnetic . | . . . . Robot Hit Streak 12 | 5 12 8 4 Robot Miss Streak 4 | 3 4 1 2 Penetration Max . | . . . . Secondary Targets 1 | . 1 . . Max Gunslinging Chain 1 | . 1 . . Shots Hit Robots 78 | 5 66 6 1 Core Hits 36 | 3 26 4 3 Critical Kills . | . . . . Critical Parts Destroyed . | . . . . Critical Strikes . | . . . . Melee Attacks . | . . . . Impact . | . . . . Slashing . | . . . . Piercing . | . . . . Sneak Attacks . | . . . . Combat Hostiles . | . . . . Follow-up Attacks . | . . . . Damage Inflicted 894 | 57 735 65 37 Guns 894 | 57 735 65 37 Cannons . | . . . . Explosions . | . . . . Melee . | . . . . Ramming . | . . . . Kinetic 27 | . . . 27 Thermal 867 | 57 735 65 10 Explosive . | . . . . Electromagnetic . | . . . . Impact . | . . . . Slashing . | . . . . Piercing . | . . . . Highest Corruption . | . . . . Average Corruption . | . . . . Corruption Purged . | . . . . Corruption Blocked . | . . . . Overload Shots . | . . . . Overflow Damage . | . . . . Projectiles . | . . . . Explosions . | . . . . Melee . | . . . . Knockbacks . | . . . . Impact . | . . . . Kinetic . | . . . . Secondary . | . . . . Self-Inflicted Damage . | . . . . Shots . | . . . . Rammed . | . . . . Targets Rammed . | . . . . Kicked . | . . . . Crushed . | . . . . Highest Temperature 186 | 54 186 . 6 Average Temperature 51 | 26 54 . 4 Received Heat Transfer 408 | . 261 132 15 Siege Activations . | . . . . Martial Activations . | . . . . Shielding Activations . | . . . . Robots Disrupted . | . . . . Combat Hostiles . | . . . . Robots Corrupted . | . . . . Combat Hostiles . | . . . . Parts Fried . | . . . . Impact Corruptions . | . . . . Robots Melted . | . . . . Combat Hostiles . | . . . . Parts Melted 2 | . 2 . . Heat Transferred 1975 | 125 1675 150 25 Parts Sabotaged . | . . . . Parts Stolen . | . . . . Parts Stripped . | . . . . Power Chain Reactions . | . . . . Alert | -11 -10 -10 -7 ------- Run | Yrd Mat Sub Rec Maximum Alert Level . | . . . . Low Security (%) 100 | 100 100 . 100 Level 1 . | . . . . Level 2 . | . . . . Level 3 . | . . . . Level 4 . | . . . . Level 5 . | . . . . High Security . | . . . . Max Security . | . . . . Peak Influence 142 | 10 142 . 48 Initial 48 | . . . 48 Average 41 | . 58 . 14 Influence Increases 483 | 10 363 110 . Destroy 0b10 Robot/C 320 | . 240 80 . Destroy 0b10 Robot/NC 20 | 10 10 . . Destroy Leader 62 | . 62 . . Successful Hack 21 | . 21 . . Lose Combat Pursuer 60 | . 30 30 . Influence Decreases 483 | 10 245 128 100 Entered New Map 110 | . . 58 52 Time Decay 353 | 10 225 70 48 Lost Part 20 | . 20 . . Squads Dispatched 4 | . 4 . . Investigation 2 | . 2 . . Extermination . | . . . . Reinforcement 2 | . 2 . . Assault . | . . . . Garrison . | . . . . Intercept . | . . . . Searches Triggered . | . . . . Construction Impeded . | . . . . Haulers Reinforced . | . . . . Active Scanning Responses . | . . . . Cargo Convoy Interrupts . | . . . . Stealth | -11 -10 -10 -7 --------- Run | Yrd Mat Sub Rec Distress Signals . | . . . . Communications Jammed . | . . . . Distress Signals . | . . . . Times Spotted 30 | . 17 8 5 Peak Tracking Total 6 | . 4 6 5 Tactical Retreats 2 | . 1 1 . Traps | -11 -10 -10 -7 ------- Run | Yrd Mat Sub Rec Traps Triggered 2 | . 2 . . Indirectly . | . . . . Trap Hack Attempts . | . . . . Triggered . | . . . . Disarmed . | . . . . Reprogrammed . | . . . . Reused . | . . . . Traps Extracted . | . . . . Installed . | . . . . Triggered . | . . . . Machines | -11 -10 -10 -7 ---------- Run | Yrd Mat Sub Rec Machines Disabled . | . . . . Max in Single Turn . | . . . . Machines Repaired . | . . . . Machines Dismantled . | . . . . Machines Sabotaged . | . . . . Overloaded Fab Kills . | . . . . Hacking | -11 -10 -10 -7 --------- Run | Yrd Mat Sub Rec Machines Accessed 4 | . 2 . 2 Terminals 2 | . 2 . . Fabricators . | . . . . Repair Stations . | . . . . Recycling Units 2 | . . . 2 Scanalyzers . | . . . . Garrison Access . | . . . . Total Hacks 12 | . 6 . 6 Successful 5 | . 2 . 3 Failed 7 | . 4 . 3 Catastrophic . | . . . . Database Lockouts . | . . . . Manual . | . . . . Terminals 6 | . 6 . . Fabricators . | . . . . Repair Stations . | . . . . Recycling Units 6 | . . . 6 Scanalyzers . | . . . . Garrison Access . | . . . . Terminal Hacks 2 | . 2 . . Registered Components 1 | . 1 . . Zone Layout 1 | . 1 . . Fabricator Hacks . | . . . . Repair Station Hacks . | . . . . Recycling Unit Hacks 3 | . . . 3 Report Inventory 2 | . . . 2 Retrieve Components 1 | . . . 1 Scanalyzer . | . . . . Garrison Access Hacks . | . . . . Unauthorized Hacks . | . . . . Terminals . | . . . . Fabricators . | . . . . Repair Stations . | . . . . Recycling Units . | . . . . Scanalyzers . | . . . . Garrison Access . | . . . . Data Cores Recovered . | . . . . Used . | . . . . Hacking Detections 2 | . 2 . . Full Trace Events . | . . . . Feedback Events . | . . . . Feedback Blocked . | . . . . Robot Schematics Acquired . | . . . . Robots Built . | . . . . Authchips . | . . . . Time . | . . . . Total Robot Build Rating . | . . . . Part Schematics Acquired . | . . . . Parts Built . | . . . . Authchips . | . . . . Time . | . . . . Total Part Build Rating . | . . . . Part Studies Acquired . | . . . . Parts Repaired . | . . . . Time . | . . . . Parts Recycled . | . . . . Recycled Matter . | . . . . Retrieved Matter . | . . . . Retrieved Components 3 | . . . 3 Parts Scanalyzed . | . . . . Part Schematics Acquired . | . . . . Parts Damaged . | . . . . Bothacking | -11 -10 -10 -7 ------------ Run | Yrd Mat Sub Rec Used RIF Installer . | . . . . Robots Hacked . | . . . . Non-combat . | . . . . Combat . | . . . . Robot Hacks Applied . | . . . . Relay Couplers Released . | . . . . Fabnet Peak Effective % . | . . . . Robots Rewired . | . . . . Allies Hacked . | . . . . Hacks Repelled . | . . . . Allies | -11 -10 -10 -7 -------- Run | Yrd Mat Sub Rec Total Allies . | . . . . Largest Group . | . . . . Highest-Rated Group . | . . . . Highest-Rated Ally . | . . . . Total Orders . | . . . . Ally Attacks . | . . . . Total Damage . | . . . . Kills . | . . . . Allies Corrupted . | . . . . Allies Melted . | . . . . Intel | -11 -10 -10 -7 ------- Run | Yrd Mat Sub Rec Active Infowar (turns) 1033 | 20 521 298 194 Terrain 346 | 20 326 . . Seismic 687 | . 195 298 194 Robot Analysis Total . | . . . . Derelict Logs Recovered 1 | . . 1 . Drone Launches . | . . . . Drone Recoveries . | . . . . Exploration | -11 -10 -10 -7 ------------- Run | Yrd Mat Sub Rec Turns Passed 1141 | 94 555 298 194 Spaces Moved 695 | 52 261 232 150 Core 4 | 4 . . . Treads . | . . . . Legs 691 | 48 261 232 150 Wheels . | . . . . Hover . | . . . . Flight . | . . . . Fastest Speed 50 | 50 120 120 120 Average Speed 120 | 129 120 120 120 Slowest Speed 190 | 190 120 120 120 Overloaded Moves . | . . . . Propulsion Burnouts . | . . . . Robots Hopped . | . . . . Potential Cave-ins . | . . . . Cave-ins Triggered . | . . . . Exploration Rate (%) 23 | 5 43 17 27 Regions Visited 3 Branch Regions 2 Pre-discovered Areas . | . . . . Known Exits Taken . | . . . . Unknown Exits Taken 3 | 1 1 1 . Scrap Searched 2 | . . 2 . Spaces Dug . | . . . . Terrain Destroyed . | . . . . Melee . | . . . . Projectile . | . . . . AOE . | . . . . Terrain Rammed . | . . . . Walls Destroyed . | . . . . Machines Disabled . | . . . . Actions | -11 -10 -10 -7 --------- Run | Yrd Mat Sub Rec Total 876 | 65 408 241 162 Wait 70 | . 65 5 . Move 692 | 51 260 231 150 Hop . | . . . . Pick Up 14 | 2 10 . 2 Fast Attach 9 | 7 1 . 1 Attach 1 | . 1 . . Detach . | . . . . Swap 11 | . 9 . 2 Drop 11 | . 8 . 3 Fire 65 | 5 54 5 1 Melee . | . . . . Ram . | . . . . Kick . | . . . . Crush . | . . . . Escape Stasis . | . . . . Rewire 3 | . . . 3 Trap . | . . . . Miscellaneous . | . . . . Route ------- -11/Scrapyard -10/Materials (discovered 3 exits: [*Mat] / [*Min] / [*Sub]) -10/Subcaves (discovered 2 exits: *Rec / [*Scr]) -7/Recycling History --------- Turn | Location | Event 20 | -11/Scrapyard | Discovered new exit (range 16) 95 | -11/Scrapyard | Entered Materials 305 | -10/Materials | Build established: Mutant 368 | -10/Materials | Discovered new exit (range 16) 375 | -10/Materials | Discovered new exit (range 9) 504 | -10/Materials | Discovered new exit (range 15) 650 | -10/Materials | Entered Subcaves 651 | -10/Subcaves | Approached by a straggling Scientist 677 | -10/Subcaves | Learned 4 Materials zone layouts 746 | -10/Subcaves | Build established: Scavenger-Mutant 839 | -10/Subcaves | Scientist uncovered a shortcut to Scraptown 914 | -10/Subcaves | Discovered new exit (range 13) 916 | -10/Subcaves | Core integrity fell below 50% 948 | -10/Subcaves | Entered Recycling 1141 | -7/Recycling | Core integrity fell below 20% 1142 | -7/Recycling | Destroyed by L-41 Fighter with Axe Last Messages --------------- 00962_ Dropped Aluminum Leg. 00962_ Acquired Imp. Carbon-fiber Leg. 00974_ Connecting with Terminal... 01003_ Dropped Sml. Laser. 01004_ Acquired Mace. 01091_ Connecting with Recycling Unit... >>Recycling(Report) Matter reserves: 0 Inventory: Empty 01102_ Y-54 Guardian springs to life. 01136_ L-41 Fighter springs to life. 01137_ P-60 Hacker springs to life. 01139_ Attempting to rewire B-48 Gladiator. 01140_ Ion Engine severed. 01140_ Attempting to rewire B-48 Gladiator. 01141_ H-55 Commando springs to life. 01141_ Penetrated by Slug. 01141_ G-47 Trooper springs to life. 01141_ Attempting to rewire B-48 Gladiator. 01142_ Aluminum Leg destroyed. Map ----- +----------------------------------------------------+ | ????????????????????????????????????????????????? | | ????????????????????????????????????????????????? | | ????????????????????????????????????????????????? | | ????????????????????????????????????????????????? | | ???????????????????????????????????????????????? | | ????????????????????????????????????????????????? | | ???????????????????????????????????????????????? | | ???????????????????????????????????????????????? | | ??????????????????????????????????????????????? | | ???????????????????????????????????????????????? | | ????????????????????????????????????????????????? | | ????????????????????????????????????????????????? | | ????????????????????????????????????????????????? | | ????????????????????????????????????????????????? | | ????????????????????????????????????????????????? | | ????????????????????????????????????????????????? | | ????????????????????????????????????????????????? | | ????????????????????????????????????????????????? | | ????????????????????????????????????????????????? | | ????????????????????????????????????????????????? | | ????????????????????????????????????????????????? | | ?????????????????????###############????????????? | | ?????????????????????# =kdbggg! r#????????????? | | ?????????????????????# !k i h! #????????????? | | ?????????#####???????# p l % ! #????????????? | | ?????????#!!!#???????#pgb@ % ski r#????????????? | | ##########!!!############/##+#####??????????????? | | #??????????????????? | | #######+##############+####??????????????????? | | # #?????????????????????????????? | | + #??????????????????????????????? | | #### #??????????????????????????????? | | ???# #??????????????????????????????? | | ???###### ########??????????????????????????????? | | ????????###?????????????????????????????????????? | | ????????????????????????????????????????????????? | | | | | | | | | | | | | | | | | | | | | | | | | | | | | +----------------------------------------------------+ Best States ------------- Heat Dissipation 25 Energy Generation 10 Energy Capacity 250 Matter Stores 300 Matter Capacity 300 Sight Range 16 Terrain Scan Range 16 Terrain Scan Density 10 Evasion (%) 55 Item Schematics ----------------- None Robot Schematics ------------------ None Fabricated ------------ Nothing Repaired ---------- Nothing Studied --------- None Alien Tech Used ----------------- None Achievements -------------- Nice Directions, Buddy Challenges ------------ None Game ------ Seed LegXenonMegatreads Manual? 0 Play Time 00:10:34 Cumulative 50.3 hours Start 2025.12.13 @ 18:23:17 End 2025.12.13 @ 18:31:46 Sessions 1 Manual Loads 0 Difficulty Rogue Special Mode None Game No. 53 Rogue 53 Adventurer 0 Explorer 0 Win Type - Total 0 Types 0/0/0/0/0/0/0/0/0/0 Lore% 23 Gallery% 41 Achievement% 32 Wizard Run 0 Options --------- Layout 1 ASCII 0 Keyboard 0 Movement Mouse Keybinds 0 Fullscreen 1 Font 24/Smallcaps Map View 50x35 Zoom Use 0% Tactical HUD 1 Map Filters NONE Filters NONE Steam 1 RUN: 9d1e9462-e791-47d2-a4bf-3e90890637e8